fUSD/lending_fUSD_20251206
["ID","MTS","AMOUNT","RATE_DAILY","PERIOD"]
[396580418,1765057859217,-500.0,0.00016986,2]
[396580419,1765057859228,-500.0,0.00016986,2]
[396580420,1765057859238,-500.0,0.00016986,2]
[396580421,1765057859250,-500.0,0.00016986,2]
[396580422,1765057859259,-500.0,0.00016986,2]
[396580423,1765057859270,-500.0,0.00016986,2]
[396580424,1765057859279,-151.0,0.00016986,2]
[396580425,1765057859289,-2096.79,0.00016986,2]
[396580426,1765057859299,-500.0,0.00016986,2]
[396580427,1765057859309,-2343.16,0.00016986,2]
[396580428,1765057859319,-500.0,0.00016986,2]
[396580429,1765057859336,-151.0,0.00016986,2]
[396580430,1765057859345,-500.0,0.00016986,2]
[396580431,1765057859355,-151.0,0.00016986,2]
[396580432,1765057859365,-268.30858635,0.00016986,2]
[396580433,1765057859375,-500.0,0.00016986,2]
[396580434,1765057859385,-1853.99,0.00016986,2]
[396580435,1765057859395,-587.2,0.00016986,2]
[396580436,1765057859407,-152.047184,0.00016986,2]
[396580437,1765057859418,-541.47587758,0.00016986,2]
[396580438,1765057859427,-151.0,0.00016986,2]
[396580439,1765057859437,-500.0,0.00016986,2]
[396580440,1765057859447,-500.0,0.00016986,2]
[396580441,1765057859456,-500.0,0.00016986,2]
[396580442,1765057859466,-925.74,0.00016986,2]
[396580443,1765057859475,-602.88095819,0.00016986,2]
[396580444,1765057859484,-1822.42,0.00016986,2]
[396580445,1765057859494,-1644.91,0.00016986,2]
[396580446,1765057859504,-500.0,0.00016986,2]
[396580447,1765057859513,-500.0,0.00016986,2]
[396580448,1765057859523,-500.0,0.00016986,2]
[396580449,1765057859532,-500.0,0.00016986,2]
[396580450,1765057859542,-500.0,0.00016986,2]
[396580451,1765057859552,-915.79,0.00016986,2]
[396580452,1765057859561,-500.0,0.00016986,2]
[396580453,1765057859574,-151.0,0.00016986,2]
[396580454,1765057859584,-151.0,0.00016986,2]
[396580455,1765057859593,-500.0,0.00016986,2]
[396580456,1765057859603,-151.0,0.00016986,2]
[396580457,1765057859612,-151.0,0.00016986,2]
[396580458,1765057859622,-500.0,0.00016986,2]
[396580459,1765057859632,-151.0,0.00016986,2]
[396580460,1765057859642,-500.0,0.00016986,2]
[396580461,1765057859653,-500.0,0.00016986,2]
[396580462,1765057859663,-2090.4,0.00016986,2]
[396580463,1765057859673,-500.0,0.00016986,2]
[396580464,1765057859683,-3146.29,0.00016986,2]
[396580465,1765057859693,-500.0,0.00016986,2]
[396580466,1765057859703,-500.0,0.00016986,2]
[396580467,1765057859712,-151.0,0.00016986,2]
[396580468,1765057859722,-500.0,0.00016986,2]
[396580469,1765057859731,-500.0,0.00016986,2]
[396580470,1765057859741,-151.0,0.00016986,2]
[396580471,1765057859750,-500.0,0.00016986,2]
[396580472,1765057859760,-500.0,0.00016986,2]
[396580473,1765057859770,-500.0,0.00016986,2]
[396580474,1765057859780,-500.0,0.00016986,2]
[396580475,1765057859789,-633.89,0.00016986,2]
[396580476,1765057859799,-500.0,0.00016986,2]
[396580477,1765057859808,-500.0,0.00016986,2]
[396580478,1765057859819,-500.0,0.00016986,2]
[396580479,1765057859828,-500.0,0.00016986,2]
[396580480,1765057859838,-151.0,0.00016986,2]
[396580481,1765057859848,-247.928709,0.00016986,2]
[396580482,1765057859857,-151.0,0.00016986,2]
[396580483,1765057859867,-151.0,0.00016986,2]
[396580484,1765057859877,-500.0,0.00016986,2]
[396580485,1765057859886,-210.74053073,0.00016986,2]
[396580486,1765057859896,-151.0,0.00016986,2]
[396580487,1765057859906,-2126.16,0.00016986,2]
[396580488,1765057859915,-568.48812078,0.00016986,2]
[396580489,1765057859925,-500.0,0.00016986,2]
[396580490,1765057859935,-500.0,0.00016986,2]
[396580491,1765057859945,-500.0,0.00016986,2]
[396580492,1765057859954,-837.83,0.00016986,2]
[396580493,1765057859964,-2072.03,0.00016986,2]
[396580494,1765057859974,-500.0,0.00016986,2]
[396580495,1765057859983,-268.4710365,0.00016986,2]
[396580496,1765057859992,-500.0,0.00016986,2]
[396580497,1765057860002,-888.54,0.00016986,2]
[396580498,1765057860011,-500.0,0.00016986,2]
[396580499,1765057860021,-500.0,0.00016986,2]
[396580500,1765057860031,-500.0,0.00016986,2]
[396580501,1765057860040,-500.0,0.00016986,2]
[396580502,1765057860050,-500.0,0.00016986,2]
[396580503,1765057860060,-500.0,0.00016986,2]
[396580504,1765057860070,-800.36,0.00016986,2]
[396580505,1765057860080,-562.59,0.00016986,2]
[396580506,1765057860089,-500.0,0.00016986,2]
[396580507,1765057860099,-688.27,0.00016986,2]
[396580508,1765057860110,-500.0,0.00016986,2]
[396580509,1765057860119,-500.0,0.00016986,2]
[396580510,1765057860130,-500.0,0.00016986,2]
[396580511,1765057860140,-151.0,0.00016986,2]
[396580512,1765057860149,-500.0,0.00016986,2]
[396580513,1765057860162,-151.0,0.00016986,2]
[396580514,1765057860172,-500.0,0.00016986,2]
[396580515,1765057860182,-500.0,0.00016986,2]
[396580516,1765057860193,-500.0,0.00016986,2]
[396580517,1765057860203,-579.14,0.00016986,2]
[396580518,1765057860213,-500.0,0.00016986,2]
[396580519,1765057860223,-2385.5,0.00016986,2]
[396580520,1765057860233,-300.0,0.00016986,2]
[396580521,1765057860243,-500.0,0.00016986,2]
[396580522,1765057860253,-2777.75,0.00016986,2]
[396580523,1765057860263,-322.16423177,0.00016986,2]
[396580524,1765057860272,-500.0,0.00016986,2]
[396580525,1765057860282,-500.0,0.00016986,2]
[396580526,1765057860291,-500.0,0.00016986,2]
[396580527,1765057860301,-500.0,0.00016986,2]
[396580528,1765057860311,-500.0,0.00016986,2]
[396580529,1765057860321,-500.0,0.00016986,2]
[396580530,1765057860334,-2315.52,0.00016986,2]
[396580531,1765057860343,-500.0,0.00016986,2]
[396580532,1765057860353,-2578.63,0.00016986,2]
[396580533,1765057860362,-525.72,0.00016986,2]
[396580534,1765057860372,-558.51,0.00016986,2]
[396580535,1765057860381,-500.0,0.00016986,2]
[396580536,1765057860391,-501.26,0.00016986,2]
[396580537,1765057860400,-2197.86,0.00016986,2]
[396580538,1765057860410,-4746.19,0.00016986,2]
[396580539,1765057860419,-500.0,0.00016986,2]
[396580540,1765057860428,-500.0,0.00016986,2]
[396580541,1765057860437,-500.0,0.00016986,2]
[396580542,1765057860447,-500.0,0.00016986,2]
[396580543,1765057860457,-626.2,0.00016986,2]
[396580544,1765057860466,-500.0,0.00016986,2]
[396580545,1765057860475,-2191.64,0.00016986,2]
[396580546,1765057860485,-2005.76,0.00016986,2]
[396580547,1765057860494,-500.0,0.00016986,2]
[396580548,1765057860504,-500.0,0.00016986,2]
[396580549,1765057860513,-574.32,0.00016986,2]
[396580550,1765057860523,-500.0,0.00016986,2]
[396580551,1765057860532,-573.0,0.00016986,2]
[396580552,1765057860541,-500.0,0.00016986,2]
[396580553,1765057860551,-500.0,0.00016986,2]
[396580554,1765057860560,-500.0,0.00016986,2]
[396580555,1765057860570,-500.0,0.00016986,2]
[396580556,1765057860579,-500.0,0.00016986,2]
[396580557,1765057860589,-500.0,0.00016986,2]
[396580558,1765057860598,-500.0,0.00016986,2]
[396580559,1765057860841,-500.0,0.00016986,2]
[396580560,1765057860858,-500.0,0.00016986,2]
[396580561,1765057860868,-500.0,0.00016986,2]
[396580562,1765057860877,-500.0,0.00016986,2]
[396580563,1765057860887,-500.0,0.00016986,2]
[396580564,1765057860896,-500.0,0.00016986,2]
[396580565,1765057860905,-500.0,0.00016986,2]
[396580566,1765057860915,-2158.84,0.00016986,2]
[396580567,1765057860925,-500.0,0.00016986,2]
[396580568,1765057860934,-500.0,0.00016986,2]
[396580569,1765057860944,-500.0,0.00016986,2]
[396580570,1765057860953,-503.8290201,0.00016986,2]
[396580571,1765057860963,-500.0,0.00016986,2]
[396580572,1765057860972,-2149.97,0.00016986,2]
[396580573,1765057860982,-1877.15,0.00016986,2]
[396580574,1765057860991,-535.71,0.00016986,2]
[396580575,1765057861001,-553.37,0.00016986,2]
[396580576,1765057861010,-500.0,0.00016986,2]
[396580577,1765057861020,-633.9,0.00016986,2]
[396580578,1765057861029,-500.0,0.00016986,2]
[396580579,1765057861039,-500.0,0.00016986,2]
[396580580,1765057861048,-998.38,0.00016986,2]
[396580581,1765057861057,-414.07776848,0.00016986,2]
[396580582,1765057861067,-500.0,0.00016986,2]
[396580583,1765057861076,-634.8,0.00016986,2]
[396580584,1765057861085,-500.0,0.00016986,2]
[396580585,1765057861095,-500.0,0.00016986,2]
[396580586,1765057861104,-500.0,0.00016986,2]
[396580587,1765057861114,-2425.57,0.00016986,2]
[396580588,1765057861123,-500.0,0.00016986,2]
[396580589,1765057861132,-500.0,0.00016986,2]
[396580590,1765057861141,-603.52030482,0.00016986,2]
[396580591,1765057861151,-958.47,0.00016986,2]
[396580592,1765057861160,-1876.76,0.00016986,2]
[396580593,1765057861170,-500.0,0.00016986,2]
[396580594,1765057861179,-581.06391536,0.00016986,2]
[396580595,1765057861188,-500.0,0.00016986,2]
[396580596,1765057861198,-500.0,0.00016986,2]
[396580597,1765057861208,-500.0,0.00016986,2]
[396580598,1765057861217,-615.3413631,0.00016986,2]
[396580599,1765057861226,-500.0,0.00016986,2]
[396580600,1765057861235,-500.0,0.00016986,2]
[396580601,1765057861244,-500.0,0.00016986,2]
[396580602,1765057861253,-500.0,0.00016986,2]
[396580603,1765057861263,-500.0,0.00016986,2]
[396580604,1765057861272,-500.0,0.00016986,2]
[396580605,1765057861280,-603.08,0.00016986,2]
[396580606,1765057861289,-500.0,0.00016986,2]
[396580607,1765057861299,-500.0,0.00016986,2]
[396580608,1765057861308,-2376.37,0.00016986,2]
[396580609,1765057861317,-500.0,0.00016986,2]
[396580610,1765057861330,-159.6,0.00016986,2]
[396580611,1765057861339,-2363.74,0.00016986,2]
[396580612,1765057861348,-500.0,0.00016986,2]
[396580613,1765057861357,-500.0,0.00016986,2]
[396580614,1765057861366,-500.0,0.00016986,2]
[396580615,1765057861377,-500.0,0.00016986,2]
[396580616,1765057861387,-2373.0,0.00016986,2]
[396580617,1765057861396,-500.0,0.00016986,2]
[396580618,1765057861408,-282.87122018,0.00016986,2]
[396580619,1765057861417,-500.0,0.00016986,2]
[396580620,1765057861426,-191.16126673,0.00016986,2]
[396580621,1765057861435,-1217.76,0.00016986,2]
[396580622,1765057861444,-500.0,0.00016986,2]
[396580623,1765057861454,-2095.97,0.00016986,2]
[396580624,1765057861464,-1083.65,0.00016986,2]
[396580625,1765057861474,-500.0,0.00016986,2]
[396580626,1765057861484,-500.0,0.00016986,2]
[396580627,1765057861494,-1525.03,0.00016986,2]
[396580628,1765057861503,-500.0,0.00016986,2]
[396580629,1765057861514,-500.0,0.00016986,2]
[396580630,1765057861525,-500.0,0.00016986,2]
[396580631,1765057861534,-500.0,0.00016986,2]
[396580632,1765057861543,-500.0,0.00016986,2]
[396580633,1765057861553,-167.662723,0.00016986,2]
[396580634,1765057861562,-151.0,0.00016986,2]
[396580635,1765057861572,-500.0,0.00016986,2]
[396580636,1765057861581,-500.0,0.00016986,2]
[396580637,1765057861590,-500.0,0.00016986,2]
[396580638,1765057861600,-160.24688003,0.00016986,2]
[396580639,1765057861609,-500.0,0.00016986,2]
[396580640,1765057861618,-330.793777,0.00016986,2]
[396580641,1765057861628,-500.0,0.00016986,2]
[396580642,1765057861637,-500.0,0.00016986,2]
[396580643,1765057861646,-330.793777,0.00016986,2]
[396580644,1765057861656,-500.0,0.00016986,2]
[396580645,1765057861665,-500.0,0.00016986,2]
[396580646,1765057861675,-500.0,0.00016986,2]
[396580647,1765057861684,-330.793777,0.00016986,2]
[396580648,1765057861695,-240.572356,0.00016986,2]
[396580649,1765057861706,-2421.59,0.00016986,2]
[396580650,1765057861717,-330.793777,0.00016986,2]
[396580651,1765057861728,-240.572356,0.00016986,2]
[396580652,1765057861737,-500.0,0.00016986,2]
[396580653,1765057861748,-240.572356,0.00016986,2]
[396580654,1765057861758,-1914.89,0.00016986,2]
[396580655,1765057861768,-240.572356,0.00016986,2]
[396580656,1765057861778,-500.0,0.00016986,2]
[396580657,1765057861788,-500.0,0.00016986,2]
[396580658,1765057861798,-500.0,0.00016986,2]
[396580659,1765057861807,-2301.61,0.00016986,2]
[396580660,1765057861817,-500.0,0.00016986,2]
[396580661,1765057861827,-500.0,0.00016986,2]
[396580662,1765057861836,-2081.6,0.00016986,2]
[396580663,1765057861847,-500.0,0.00016986,2]
[396580664,1765057861857,-2339.06,0.00016986,2]
[396580665,1765057861867,-500.0,0.00016986,2]
[396580666,1765057861876,-555.42,0.00016986,2]
[396580667,1765057861887,-500.0,0.00016986,2]
[396580668,1765057861897,-500.0,0.00016986,2]
[396580669,1765057861908,-500.0,0.00016986,2]
[396580670,1765057861918,-1356.0,0.00016986,2]
[396580671,1765057861927,-536.96007657,0.00016986,2]
[396580672,1765057861937,-4508.39,0.00016986,2]
[396580673,1765057861946,-500.0,0.00016986,2]
[396580674,1765057861955,-500.0,0.00016986,2]
[396580675,1765057861964,-500.0,0.00016986,2]
[396580676,1765057861974,-500.0,0.00016986,2]
[396580677,1765057861984,-1916.86,0.00016986,2]
[396580678,1765057861994,-500.0,0.00016986,2]
[396580679,1765057862003,-525.66,0.00016986,2]
[396580680,1765057862014,-449.00327897,0.00016986,2]
[396580681,1765057862023,-500.0,0.00016986,2]
[396580682,1765057862032,-2221.95,0.00016986,2]
[396580683,1765057862041,-500.0,0.00016986,2]
[396580684,1765057862051,-1172.65,0.00016986,2]
[396580685,1765057862060,-778.92,0.00016986,2]
[396580686,1765057862069,-500.0,0.00016986,2]
[396580687,1765057862078,-1408.21,0.00016986,2]
[396580688,1765057862088,-500.0,0.00016986,2]
[396580689,1765057862098,-504.83,0.00016986,2]
[396580690,1765057862108,-2428.95,0.00016986,2]
[396580691,1765057862119,-500.0,0.00016986,2]
[396580692,1765057862130,-1881.71,0.00016986,2]
[396580693,1765057862139,-500.0,0.00016986,2]
[396580694,1765057862149,-500.0,0.00016986,2]
[396580695,1765057862160,-500.0,0.00016986,2]
[396580696,1765057862170,-829.78,0.00016986,2]
[396580697,1765057862180,-500.0,0.00016986,2]
[396580698,1765057862190,-500.0,0.00016986,2]
[396580699,1765057862200,-7072.36,0.00016986,2]
[396580700,1765057862212,-2007.83,0.00016986,2]
[396580701,1765057862222,-500.0,0.00016986,2]
[396580702,1765057862232,-225.686062,0.00016986,2]
[396580703,1765057862243,-2294.1,0.00016986,2]
[396580704,1765057862254,-500.0,0.00016986,2]
[396580705,1765057862263,-500.0,0.00016986,2]
[396580706,1765057862273,-500.0,0.00016986,2]
[396580707,1765057862283,-2553.25,0.00016986,2]
[396580708,1765057862294,-500.0,0.00016986,2]
[396580709,1765057862306,-500.0,0.00016986,2]
[396580710,1765057862317,-151.0,0.00016986,2]
[396580711,1765057862330,-500.0,0.00016986,2]
[396580712,1765057862341,-151.0,0.00016986,2]
[396580713,1765057862350,-163.554883,0.00016986,2]
[396580714,1765057862360,-151.0,0.00016986,2]
[396580715,1765057862370,-500.0,0.00016986,2]
[396580716,1765057862380,-505.27823219,0.00016986,2]
[396580717,1765057862391,-151.0,0.00016986,2]
[396580718,1765057862401,-151.0,0.00016986,2]
[396580719,1765057862410,-500.0,0.00016986,2]
[396580720,1765057862419,-153.420936,0.00016986,2]
[396580721,1765057862429,-1909.75,0.00016986,2]
[396580722,1765057862439,-500.0,0.00016986,2]
[396580723,1765057862448,-500.0,0.00016986,2]
[396580724,1765057862459,-500.0,0.00016986,2]
[396580725,1765057862468,-502.09113523,0.00016986,2]
[396580726,1765057862477,-503.7055426,0.00016986,2]
[396580727,1765057862487,-2054.72,0.00016986,2]
[396580728,1765057862495,-500.0,0.00016986,2]
[396580729,1765057862505,-500.0,0.00016986,2]
[396580730,1765057862514,-679.71,0.00016986,2]
[396580731,1765057862523,-151.0,0.00016986,2]
[396580732,1765057862532,-500.0,0.00016986,2]
[396580733,1765057862542,-500.0,0.00016986,2]
[396580734,1765057862551,-541.1,0.00016986,2]
[396580735,1765057862560,-500.0,0.00016986,2]
[396580736,1765057862570,-500.0,0.00016986,2]
[396580737,1765057862580,-2589.16,0.00016986,2]
[396580738,1765057862589,-2168.96,0.00016986,2]
[396580739,1765057862598,-500.0,0.00016986,2]
[396580740,1765057862608,-500.0,0.00016986,2]
[396580741,1765057862617,-500.0,0.00016986,2]
[396580742,1765057862626,-500.0,0.00016986,2]
[396580743,1765057862635,-524.4,0.00016986,2]
[396580744,1765057862645,-500.0,0.00016986,2]
[396580745,1765057862655,-500.0,0.00016986,2]
[396580746,1765057862664,-1394.9,0.00016986,2]
[396580747,1765057862673,-1544.37,0.00016986,2]
[396580748,1765057862683,-946.55,0.00016986,2]
[396580749,1765057862692,-500.0,0.00016986,2]
[396580750,1765057862702,-500.0,0.00016986,2]
[396580751,1765057862711,-1000.0,0.00016986,2]
[396580752,1765057862720,-506.9,0.00016986,2]
[396580753,1765057862730,-500.0,0.00016986,2]
[396580754,1765057862739,-500.0,0.00016986,2]
[396580755,1765057862749,-500.0,0.00016986,2]
[396580756,1765057862758,-500.0,0.00016986,2]
[396580757,1765057862767,-2539.91,0.00016986,2]
[396580758,1765057862776,-500.0,0.00016986,2]
[396580759,1765057862785,-500.0,0.00016986,2]
[396580760,1765057862795,-3269.83,0.00016986,2]
[396580761,1765057862804,-500.0,0.00016986,2]
[396580762,1765057862813,-500.0,0.00016986,2]
[396580763,1765057862823,-2087.78,0.00016986,2]
[396580764,1765057862832,-500.0,0.00016986,2]
[396580765,1765057862841,-500.0,0.00016986,2]
[396580766,1765057862851,-2381.44,0.00016986,2]
[396580767,1765057862860,-500.0,0.00016986,2]
[396580768,1765057862869,-500.0,0.00016986,2]
[396580769,1765057862879,-661.68,0.00016986,2]
[396580770,1765057862888,-500.0,0.00016986,2]
[396580771,1765057862897,-500.0,0.00016986,2]
[396580772,1765057862907,-500.0,0.00016986,2]
[396580773,1765057862916,-2344.42,0.00016986,2]
[396580774,1765057862925,-500.0,0.00016986,2]
[396580775,1765057862936,-500.0,0.00016986,2]
[396580776,1765057862945,-500.0,0.00016986,2]
[396580777,1765057862955,-1073.26,0.00016986,2]
[396580778,1765057862964,-552.53,0.00016986,2]
[396580779,1765057862973,-514.91,0.00016986,2]
[396580780,1765057862984,-2084.02,0.00016986,2]
[396580781,1765057862993,-1945.99,0.00016986,2]
[396580782,1765057863003,-395.98583053,0.00016986,2]
[396580783,1765057863012,-2214.05,0.00016986,2]
[396580784,1765057863022,-500.0,0.00016986,2]
[396580785,1765057863031,-7019.52,0.00016986,2]
[396580786,1765057863040,-741.07,0.00016986,2]
[396580787,1765057863050,-500.0,0.00016986,2]
[396580788,1765057863060,-500.0,0.00016986,2]
[396580789,1765057863070,-500.0,0.00016986,2]
[396580790,1765057863079,-500.0,0.00016986,2]
[396580791,1765057863089,-500.0,0.00016986,2]
[396580792,1765057863098,-500.0,0.00016986,2]
[396580793,1765057863108,-500.0,0.00016986,2]
[396580794,1765057863118,-428.899887,0.00016986,2]
[396580795,1765057863128,-500.0,0.00016986,2]
[396580796,1765057863138,-428.899887,0.00016986,2]
[396580797,1765057863149,-500.0,0.00016986,2]
[396580798,1765057863159,-655.16,0.00016986,2]
[396580799,1765057863169,-151.0,0.00016986,2]
[396580800,1765057863178,-500.0,0.00016986,2]
[396580801,1765057863188,-500.0,0.00016986,2]
[396580802,1765057863198,-500.0,0.00016986,2]
[396580803,1765057863208,-1206.11,0.00016986,2]
[396580804,1765057863218,-428.899887,0.00016986,2]
[396580805,1765057863228,-538.07,0.00016986,2]
[396580806,1765057863238,-519.65,0.00016986,2]
[396580807,1765057863248,-151.0,0.00016986,2]
[396580808,1765057863261,-500.0,0.00016986,2]
[396580809,1765057863277,-428.899887,0.00016986,2]
[396580810,1765057863290,-151.0,0.00016986,2]
[396580811,1765057863302,-500.0,0.00016986,2]
[396580812,1765057863317,-151.0,0.00016986,2]
[396580813,1765057863332,-500.0,0.00016986,2]
[396580814,1765057863346,-500.0,0.00016986,2]
[396580815,1765057863361,-253.37551,0.00016986,2]
[396580816,1765057863376,-1595.3,0.00016986,2]
[396580817,1765057863389,-151.0,0.00016986,2]
[396580818,1765057863402,-500.0,0.00016986,2]
[396580819,1765057863416,-500.0,0.00016986,2]
[396580820,1765057863429,-500.0,0.00016986,2]
[396580821,1765057863442,-500.0,0.00016986,2]
[396580822,1765057863456,-563.57,0.00016986,2]
[396580823,1765057863470,-1190.57,0.00016986,2]
[396580824,1765057863486,-715.96,0.00016986,2]
[396580825,1765057863499,-1696.69,0.00016986,2]
[396580826,1765057863514,-573.06,0.00016986,2]
[396580827,1765057863528,-2735.73,0.00016986,2]
[396580828,1765057863541,-2242.51,0.00016986,2]
[396580829,1765057863554,-151.0,0.00016986,2]
[396580830,1765057863567,-552.55,0.00016986,2]
[396580831,1765057863581,-500.0,0.00016986,2]
[396580832,1765057863595,-500.0,0.00016986,2]
[396580833,1765057863609,-507.29,0.00016986,2]
[396580834,1765057863622,-500.0,0.00016986,2]
[396580835,1765057863634,-151.0,0.00016986,2]
[396580836,1765057863645,-500.0,0.00016986,2]
[396580837,1765057863656,-150.0,0.00016986,2]
[396580838,1765057863672,-2602.84,0.00016986,2]
[396580839,1765057863685,-504.16999678,0.00016986,2]
[396580840,1765057863696,-151.0,0.00016986,2]
[396580841,1765057863707,-151.0,0.00016986,2]
[396580842,1765057863720,-500.0,0.00016986,2]
[396580843,1765057863733,-760.04,0.00016986,2]
[396580844,1765057863744,-500.0,0.00016986,2]
[396580845,1765057863756,-151.0,0.00016986,2]
[396580846,1765057863770,-500.0,0.00016986,2]
[396580847,1765057863782,-500.0,0.00016986,2]
[396580848,1765057863794,-500.0,0.00016986,2]
[396580849,1765057863806,-500.0,0.00016986,2]
[396580850,1765057863819,-675.44,0.00016986,2]
[396580851,1765057863831,-500.0,0.00016986,2]
[396580852,1765057863843,-500.0,0.00016986,2]
[396580853,1765057863855,-500.0,0.00016986,2]
[396580854,1765057863867,-500.0,0.00016986,2]
[396580855,1765057863879,-2443.62,0.00016986,2]
[396580856,1765057863891,-8967.37,0.00016986,2]
[396580857,1765057863903,-2115.07,0.00016986,2]
[396580858,1765057863915,-596.41,0.00016986,2]
[396580859,1765057863927,-2711.77,0.00016986,2]
[396580860,1765057863938,-151.0,0.00016986,2]
[396580861,1765057863950,-500.0,0.00016986,2]
[396580862,1765057863961,-151.0,0.00016986,2]
[396580863,1765057863972,-735.72,0.00016986,2]
[396580864,1765057863984,-500.0,0.00016986,2]
[396580865,1765057863996,-500.0,0.00016986,2]
[396580866,1765057864007,-500.0,0.00016986,2]
[396580867,1765057864019,-2899.11,0.00016986,2]
[396580868,1765057864030,-599.49,0.00016986,2]
[396580869,1765057864041,-2478.26,0.00016986,2]
[396580870,1765057864054,-500.0,0.00016986,2]
[396580871,1765057864066,-500.0,0.00016986,2]
[396580872,1765057864078,-500.0,0.00016986,2]
[396580873,1765057864090,-518.26639628,0.00016986,2]
[396580874,1765057864103,-816.03,0.00016986,2]
[396580875,1765057864115,-850.82,0.00016986,2]
[396580876,1765057864127,-500.0,0.00016986,2]
[396580877,1765057864139,-2592.23,0.00016986,2]
[396580878,1765057864150,-2534.7,0.00016986,2]
[396580879,1765057864164,-500.0,0.00016986,2]
[396580880,1765057864177,-151.000016,0.00016986,2]
[396580881,1765057864189,-487.72520769,0.00016986,2]
[396580882,1765057864200,-500.0,0.00016986,2]
[396580883,1765057864212,-500.0,0.00016986,2]
[396580884,1765057864224,-996.7,0.00016986,2]
[396580885,1765057864235,-549.7,0.00016986,2]
[396580886,1765057864246,-500.0,0.00016986,2]
[396580887,1765057864258,-500.0,0.00016986,2]
[396580888,1765057864270,-1377.12,0.00016986,2]
[396580889,1765057864281,-151.0,0.00016986,2]
[396580890,1765057864293,-1189.83,0.00016986,2]
[396580891,1765057864305,-500.0,0.00016986,2]
[396580892,1765057864317,-9091.6,0.00016986,2]
[396580893,1765057864331,-2380.86,0.00016986,2]
[396580894,1765057864344,-151.0,0.00016986,2]
[396580895,1765057864356,-500.0,0.00016986,2]
[396580896,1765057864369,-500.0,0.00016986,2]
[396580897,1765057864382,-2663.76,0.00016986,2]
[396580898,1765057864393,-500.0,0.00016986,2]
[396580899,1765057864405,-502.60202335,0.00016986,2]
[396580900,1765057864416,-489.24212124,0.00016986,2]
[396580901,1765057864430,-503.63979683,0.00016986,2]
[396580902,1765057864442,-504.82300463,0.00016986,2]
[396580903,1765057864455,-2314.94,0.00016986,2]
[396580904,1765057864466,-500.0,0.00016986,2]
[396580905,1765057864479,-500.0,0.00016986,2]
[396580906,1765057864491,-507.69,0.00016986,2]
[396580907,1765057864503,-500.0,0.00016986,2]
[396580908,1765057864519,-241.344324,0.00016986,2]
[396580909,1765057864533,-723.63,0.00016986,2]
[396580910,1765057864544,-500.0,0.00016986,2]
[396580911,1765057864555,-2332.1,0.00016986,2]
[396580912,1765057864567,-500.0,0.00016986,2]
[396580913,1765057864582,-500.0,0.00016986,2]
[396580914,1765057864593,-241.344324,0.00016986,2]
[396580915,1765057864610,-500.0,0.00016986,2]
[396580916,1765057864622,-151.0,0.00016986,2]
[396580917,1765057864633,-650.48,0.00016986,2]